[Event "EYCC Open-U18 2019"]
[Site "Bratislava"]
[Date "2019.08.10"]
[Round "9.31"]
[White "Bekasovs, Rihards"]
[Black "Omorjan, Dejan"]
[Result "1/2-1/2"]
[ECO "A05"]
[WhiteElo "2144"]
[BlackElo "2317"]
[Annotator "NA"]
[PlyCount "38"]
[EventDate "2019.08.02"]
[EventType "swiss"]
[EventCountry "SVK"]
[SourceTitle "playchess.com"]
[Source "ChessBase"]
[SourceQuality "1"]
[TimeControl "40/5400+30:1800+30"]

1. Nf3 {[%emt 0:00:00]} Nf6 {[%emt 0:01:50]} 2. b3 {[%emt 0:00:09]} g6 {[%emt 0:00:19]} 3. Bb2 {[%emt 0:00:08]} Bg7 {[%emt 0:00:04]} 4. g3 {[%emt 0:01:48]} O-O {[%emt 0:00:19]} 5. Bg2 {[%emt 0:00:15]} d6 {[%emt 0:00:32]} 6. d4 {[%emt 0:00:06]} c5 {[%emt 0:01:27]} 7. c4 {[%emt 0:02:02]} d5 {[%emt 0:06:18]} 8. cxd5 {[%emt 0:08:38]} Nxd5 {[%emt 0:02:49]} 9. Qd2 {[%emt 0:06:58]} Nc7 {[%emt 0:03:53]} 10. O-O {[%emt 0:03:34]} Nc6 {[%emt 0:02:46]} 11. Rd1 {[%emt 0:02:37]} Bf5 {[%emt 0:08:52]} 12. Na3 {[%emt 0:03:45]} Be4 {[%emt 0:13:06]} 13. dxc5 {[%emt 0:03:12]} Qxd2 {[%emt 0:02:59]} 14. Rxd2 {[%emt 0:00:03]} Na6 {[%emt 0:06:02]} 15. Nd4 {[%emt 0:12:09]} Bxg2 {[%emt 0:04:50]} 16. Kxg2 {[%emt 0:02:45]} Ncb4 {[%emt 0:12:24]} 17. c6 {[%emt 0:09:13]} bxc6 {[%emt 0:02:31]} 18. Nf3 {[%emt 0:01:30]} Bxb2 {[%emt 0:03:33]} 19. Rxb2 {[%emt 0:00:05]} Rfd8 {[%emt 0:02:14]} 1/2-1/2

[Event "EYCC Open-U18 2019"]
[Site "Bratislava"]
[Date "2019.08.10"]
[Round "9.32"]
[White "Zabolotnov, Evgeny"]
[Black "Mirri, Pietro"]
[Result "1/2-1/2"]
[ECO "D35"]
[WhiteElo "2284"]
[BlackElo "2194"]
[Annotator "NA"]
[PlyCount "39"]
[EventDate "2019.08.02"]
[EventType "swiss"]
[EventCountry "SVK"]
[SourceTitle "playchess.com"]
[Source "ChessBase"]
[SourceQuality "1"]
[TimeControl "40/5400+30:1800+30"]

1. d4 {[%emt 0:03:12]} d5 {[%emt 0:00:00]} 2. c4 {[%emt 0:00:03]} e6 {[%emt 0:00:00]} 3. Nc3 {[%emt 0:00:06]} Nf6 {[%emt 0:00:00]} 4. cxd5 {[%emt 0:00:03]} exd5 {[%emt 0:00:00]} 5. Bg5 {[%emt 0:00:03]} Be7 {[%emt 0:00:00]} 6. e3 {[%emt 0:00:04]} c6 {[%emt 0:01:37]} 7. Bd3 {[%emt 0:00:14]} O-O {[%emt 0:00:34]} 8. Qc2 {[%emt 0:00:02]} h6 {[%emt 0:01:21]} 9. Bf4 {[%emt 0:00:09]} Nbd7 {[%emt 0:01:33]} 10. h3 {[%emt 0:00:54]} c5 {[%emt 0:07:11]} 11. Nf3 {[%emt 0:01:16]} a6 {[%emt 0:00:53]} 12. O-O {[%emt 0:00:43]} c4 {[%emt 0:06:33]} 13. Be2 {[%emt 0:03:25]} b5 {[%emt 0:01:41]} 14. Ne5 {[%emt 0:00:36]} Bb7 {[%emt 0:02:15]} 15. Bf3 {[%emt 0:03:07]} Nb6 {[%emt 0:05:42]} 16. a3 {[%emt 0:05:41]} Rc8 {[%emt 0:08:15]} 17. Bh2 {[%emt 0:09:32]} Re8 {[%emt 0:07:50]} 18. Rad1 {[%emt 0:10:07]} Bd6 {[%emt 0:04:36]} 19. Kh1 {[%emt 0:13:44]} Qc7 {[%emt 0:02:32]} 20. Rfe1 {[%emt 0:06:47]} 1/2-1/2

[Event "EYCC Open-U18 2019"]
[Site "Bratislava"]
[Date "2019.08.10"]
[Round "9.33"]
[White "Kizatbay, Abyl"]
[Black "Polczyk, Mikolaj"]
[Result "1/2-1/2"]
[ECO "B03"]
[WhiteElo "2216"]
[BlackElo "2111"]
[Annotator "NA"]
[PlyCount "53"]
[EventDate "2019.08.02"]
[EventType "swiss"]
[EventCountry "SVK"]
[SourceTitle "playchess.com"]
[Source "ChessBase"]
[SourceQuality "1"]
[TimeControl "40/5400+30:1800+30"]

1. e4 {[%emt 0:00:00]} Nf6 {[%emt 0:00:00]} 2. e5 {[%emt 0:00:05]} Nd5 {[%emt 0:00:00]} 3. d4 {[%emt 0:00:32]} d6 {[%emt 0:00:00]} 4. c4 {[%emt 0:00:02]} Nb6 {[%emt 0:00:00]} 5. exd6 {[%emt 0:00:16]} cxd6 {[%emt 0:00:01]} 6. Nc3 {[%emt 0:01:41]} g6 {[%emt 0:00:06]} 7. Be3 {[%emt 0:01:18]} Bg7 {[%emt 0:00:15]} 8. Rc1 {[%emt 0:01:08]} O-O {[%emt 0:00:22]} 9. b3 {[%emt 0:03:07]} Nc6 {[%emt 0:01:01]} 10. Nf3 {[%emt 0:05:53]} f5 {[%emt 0:08:09]} 11. d5 {[%emt 0:06:01]} Ne5 {[%emt 0:04:55]} 12. Be2 {[%emt 0:08:21]} f4 {[%emt 0:00:11]} 13. Bd4 {[%emt 0:01:49]} Nxf3+ {[%emt 0:00:07]} 14. Bxf3 {[%emt 0:00:17]} Nd7 {[%emt 0:00:06]} 15. Bg4 {[%emt 0:10:37]} Ne5 {[%emt 0:06:57]} 16. Bxc8 {[%emt 0:04:46]} Qxc8 {[%emt 0:00:26]} 17. f3 {[%emt 0:02:08]} Qf5 {[%emt 0:04:38]} 18. O-O {[%emt 0:03:15]} g5 {[%emt 0:04:28]} 19. Nb5 {[%emt 0:06:04]} Rfc8 {[%emt 0:14:16]} 20. Kh1 {[%emt 0:08:30]} a6 {[%emt 0:02:52]} 21. Bxe5 {[%emt 0:01:52]} Qxe5 {[%emt 0:03:11]} 22. Re1 {[%emt 0:02:06]} Qf6 {[%emt 0:11:06]} 23. Re6 {[%emt 0:05:38]} Qb2 {[%emt 0:00:12]} 24. Rc2 {[%emt 0:04:44]} Qa1 {[%emt 0:00:08]} 25. Rc1 {[%emt 0:00:44]} Qb2 {[%emt 0:03:09]} 26. Re2 {[%emt 0:01:31]} Qf6 {[%emt 0:00:07]} 27. Re6 {[%emt 0:09:05]} 1/2-1/2

[Event "EYCC Open-U18 2019"]
[Site "Bratislava"]
[Date "2019.08.10"]
[Round "9.34"]
[White "Stijve, Theo"]
[Black "Horak, Jan"]
[Result "1-0"]
[ECO "B46"]
[WhiteElo "2336"]
[BlackElo "2020"]
[Annotator "NA"]
[PlyCount "59"]
[EventDate "2019.08.02"]
[EventType "swiss"]
[EventCountry "SVK"]
[SourceTitle "playchess.com"]
[Source "ChessBase"]
[SourceQuality "1"]
[TimeControl "40/5400+30:1800+30"]

1. e4 {[%emt 0:00:01]} c5 {[%emt 0:00:00]} 2. Nf3 {[%emt 0:00:06]} e6 {[%emt 0:00:00]} 3. d4 {[%emt 0:00:09]} cxd4 {[%emt 0:00:07]} 4. Nxd4 {[%emt 0:00:06]} Nc6 {[%emt 0:00:44]} 5. Nc3 {[%emt 0:00:08]} a6 {[%emt 0:00:31]} 6. Be3 {[%emt 0:00:10]} Qc7 {[%emt 0:00:32]} 7. Qd2 {[%emt 0:00:09]} Nf6 {[%emt 0:02:53]} 8. O-O-O {[%emt 0:01:14]} Bb4 {[%emt 0:00:24]} 9. f3 {[%emt 0:00:11]} Ne5 {[%emt 0:03:17]} 10. Nb3 {[%emt 0:00:34]} b5 {[%emt 0:00:36]} 11. Qe1 {[%emt 0:00:14]} Be7 {[%emt 0:15:24]} 12. f4 {[%emt 0:02:44]} Nc4 {[%emt 0:02:44]} 13. e5 {[%emt 0:03:39]} Ng4 {[%emt 0:13:22]} 14. Bg1 {[%emt 0:04:58]} Nh6 {[%emt 0:00:21]} 15. Ne4 {[%emt 0:05:31]} d5 {[%emt 0:01:49]} 16. exd6 {[%emt 0:08:29]} Nxd6 {[%emt 0:00:46]} 17. Bd4 {[%emt 0:18:45]} Nhf5 {[%emt 0:15:54]} 18. Be5 {[%emt 0:02:48]} Bb7 {[%emt 0:02:13]} 19. Nbc5 {[%emt 0:01:19]} Rc8 {[%emt 0:02:56]} 20. Bd3 {[%emt 0:05:04]} Qb6 {[%emt 0:05:00]} 21. Nxd6+ {[%emt 0:08:44]} Nxd6 {[%emt 0:05:18]} 22. Nxb7 {[%emt 0:03:39]} Nxb7 {[%emt 0:00:11]} 23. Bxg7 {[%emt 0:02:19]} Rg8 {[%emt 0:00:16]} 24. Bd4 {[%emt 0:01:47]} Qa5 {[%emt 0:00:15]} 25. Qxa5 {[%emt 0:05:13]} Nxa5 {[%emt 0:00:07]} 26. g3 {[%emt 0:00:34]} f5 {[%emt 0:00:38]} 27. Rhe1 {[%emt 0:01:40]} Kf7 {[%emt 0:00:06]} 28. Be2 {[%emt 0:00:12]} Bf6 {[%emt 0:01:25]} 29. Bh5+ {[%emt 0:00:42]} Ke7 {[%emt 0:00:14]} 30. Bxf6+ {[%emt 0:00:18]} 1-0

[Event "EYCC Open-U18 2019"]
[Site "Bratislava"]
[Date "2019.08.10"]
[Round "9.35"]
[White "Martinez Fernandez, Adrian"]
[Black "Triantos, Konstantinos"]
[Result "1-0"]
[ECO "C24"]
[WhiteElo "2311"]
[BlackElo "2129"]
[Annotator "NA"]
[PlyCount "208"]
[EventDate "2019.08.02"]
[EventType "swiss"]
[EventCountry "SVK"]
[SourceTitle "playchess.com"]
[Source "ChessBase"]
[SourceQuality "1"]
[TimeControl "40/5400+30:1800+30"]

1. e4 {[%emt 0:00:00]} e5 {[%emt 0:00:00]} 2. Bc4 {[%emt 0:05:51]} Nf6 {[%emt 0:04:36]} 3. d3 {[%emt 0:00:12]} Nc6 {[%emt 0:07:59]} 4. Nc3 {[%emt 0:01:27]} d6 {[%emt 0:03:25]} 5. f4 {[%emt 0:00:46]} exf4 {[%emt 0:04:34]} 6. Bxf4 {[%emt 0:00:40]} Be7 {[%emt 0:01:36]} 7. Nf3 {[%emt 0:01:41]} Be6 {[%emt 0:03:09]} 8. Bb3 {[%emt 0:04:32]} Qd7 {[%emt 0:06:55]} 9. O-O {[%emt 0:00:42]} O-O {[%emt 0:13:50]} 10. d4 {[%emt 0:06:08]} Bxb3 {[%emt 0:00:31]} 11. axb3 {[%emt 0:02:19]} Rfe8 {[%emt 0:00:35]} 12. Re1 {[%emt 0:07:25]} a6 {[%emt 0:03:53]} 13. Qd2 {[%emt 0:08:35]} Rad8 {[%emt 0:02:47]} 14. Rad1 {[%emt 0:01:30]} h6 {[%emt 0:01:57]} 15. d5 {[%emt 0:09:24]} Nb8 {[%emt 0:00:16]} 16. Nd4 {[%emt 0:00:29]} Qg4 {[%emt 0:02:32]} 17. Nf5 {[%emt 0:03:27]} Bf8 {[%emt 0:01:32]} 18. h3 {[%emt 0:02:28]} Qg6 {[%emt 0:02:28]} 19. Re3 {[%emt 0:05:48]} Nxe4 {[%emt 0:04:37]} 20. Nxh6+ {[%emt 0:00:22]} Qxh6 {[%emt 0:00:42]} 21. Rxe4 {[%emt 0:01:58]} Qg6 {[%emt 0:00:30]} 22. Rde1 {[%emt 0:00:33]} Rxe4 {[%emt 0:00:09]} 23. Rxe4 {[%emt 0:02:46]} Nd7 {[%emt 0:00:13]} 24. b4 {[%emt 0:05:43]} c6 {[%emt 0:08:46]} 25. Re1 {[%emt 0:12:18]} Rc8 {[%emt 0:03:24]} 26. dxc6 {[%emt 0:01:11]} bxc6 {[%emt 0:00:32]} 27. Ne2 {[%emt 0:01:12]} Re8 {[%emt 0:02:17]} 28. Rd1 {[%emt 0:02:09]} Nf6 {[%emt 0:04:26]} 29. Nd4 {[%emt 0:02:21]} Qe4 {[%emt 0:00:18]} 30. Nf3 {[%emt 0:03:20]} Qf5 {[%emt 0:05:17]} 31. c3 {[%emt 0:01:43]} Nd5 {[%emt 0:00:51]} 32. Bg3 {[%emt 0:00:40]} Ne3 {[%emt 0:02:06]} 33. Qd3 {[%emt 0:01:00]} g6 {[%emt 0:04:54]} 34. Qxf5 {[%emt 0:01:07]} Nxf5 {[%emt 0:00:03]} 35. Bf4 {[%emt 0:00:53]} Re4 {[%emt 0:00:54]} 36. Bg5 {[%emt 0:01:19]} Re2 {[%emt 0:01:51]} 37. Rd2 {[%emt 0:00:13]} Rxd2 {[%emt 0:00:43]} 38. Nxd2 {[%emt 0:00:02]} Kg7 {[%emt 0:02:01]} 39. g4 {[%emt 0:03:12]} Ne7 {[%emt 0:00:29]} 40. Bxe7 {[%emt 0:00:00]} Bxe7 {[%emt 0:00:00]} 41. Kf2 {[%emt 0:00:21]} Kf6 {[%emt 0:00:31]} 42. Ke3 {[%emt 0:03:48]} Ke5 {[%emt 0:02:54]} 43. Nf3+ {[%emt 0:00:50]} Kd5 {[%emt 0:00:31]} 44. Kd3 {[%emt 0:00:02]} g5 {[%emt 0:03:48]} 45. Nd4 {[%emt 0:02:53]} c5 {[%emt 0:01:36]} 46. c4+ {[%emt 0:00:22]} Ke5 {[%emt 0:00:02]} 47. Nc6+ {[%emt 0:00:04]} Ke6 {[%emt 0:00:25]} 48. Ke4 {[%emt 0:00:34]} Bf6 {[%emt 0:03:13]} 49. b3 {[%emt 0:00:07]} cxb4 {[%emt 0:04:51]} 50. Nxb4 {[%emt 0:00:19]} a5 {[%emt 0:00:03]} 51. Nc6 {[%emt 0:02:54]} Bc3 {[%emt 0:00:35]} 52. Nd4+ {[%emt 0:06:44]} Kd7 {[%emt 0:00:17]} 53. Nf3 {[%emt 0:00:07]} f6 {[%emt 0:00:36]} 54. Kd5 {[%emt 0:00:13]} Bb4 {[%emt 0:03:45]} 55. Nd4 {[%emt 0:01:33]} Bc5 {[%emt 0:01:09]} 56. Nf5 {[%emt 0:00:37]} Bb4 {[%emt 0:00:28]} 57. Ng3 {[%emt 0:00:06]} Bc3 {[%emt 0:02:35]} 58. Nf5 {[%emt 0:05:31]} Bb4 {[%emt 0:00:35]} 59. h4 {[%emt 0:02:16]} gxh4 {[%emt 0:00:07]} 60. Nxh4 {[%emt 0:00:01]} Bc3 {[%emt 0:01:43]} 61. Nf5 {[%emt 0:00:02]} Bb4 {[%emt 0:00:16]} 62. Ng3 {[%emt 0:00:07]} Ke7 {[%emt 0:01:38]} 63. Ne4 {[%emt 0:00:44]} Ba3 {[%emt 0:00:04]} 64. Nc3 {[%emt 0:03:06]} Bb4 {[%emt 0:00:48]} 65. Nb5 {[%emt 0:00:01]} Kd7 {[%emt 0:00:11]} 66. Nd4 {[%emt 0:00:20]} Bc5 {[%emt 0:00:39]} 67. Nf5 {[%emt 0:01:33]} Bb4 {[%emt 0:00:09]} 68. Ke4 {[%emt 0:00:30]} Bc3 {[%emt 0:02:40]} 69. Kd5 {[%emt 0:00:32]} Bb4 {[%emt 0:00:06]} 70. Ng7 {[%emt 0:00:11]} Bc3 {[%emt 0:00:28]} 71. Ne6 {[%emt 0:00:46]} Bb4 {[%emt 0:00:25]} 72. Nf4 {[%emt 0:00:34]} Bc3 {[%emt 0:01:09]} 73. Nd3 {[%emt 0:00:02]} Bd2 {[%emt 0:00:33]} 74. Ke4 {[%emt 0:01:02]} Bc3 {[%emt 0:03:08]} 75. Kf5 {[%emt 0:00:10]} Ke7 {[%emt 0:00:25]} 76. Nf4 {[%emt 0:00:07]} Kf7 {[%emt 0:00:14]} 77. Ne2 {[%emt 0:01:12]} Be5 {[%emt 0:00:52]} 78. Nc1 {[%emt 0:00:55]} Bb2 {[%emt 0:00:23]} 79. Nd3 {[%emt 0:00:06]} Bc3 {[%emt 0:00:16]} 80. Nf2 {[%emt 0:00:04]} Bd4 {[%emt 0:00:22]} 81. Nd3 {[%emt 0:00:59]} Bc3 {[%emt 0:00:16]} 82. Nf4 {[%emt 0:00:01]} Be5 {[%emt 0:01:32]} 83. Ne6 {[%emt 0:00:10]} Bc3 {[%emt 0:00:11]} 84. Nc7 {[%emt 0:00:29]} Bb2 {[%emt 0:02:27]} 85. Ke4 {[%emt 0:02:29]} Ke7 {[%emt 0:00:25]} 86. Nd5+ {[%emt 0:00:01]} Ke6 {[%emt 0:00:36]} 87. Nf4+ {[%emt 0:00:11]} Ke7 {[%emt 0:00:15]} 88. Kf5 {[%emt 0:02:00]} Kf7 {[%emt 0:00:22]} 89. Nd5 {[%emt 0:00:06]} Bd4 {[%emt 0:00:45]} 90. Nc7 {[%emt 0:00:06]} Bb6 {[%emt 0:00:46]} 91. Nb5 {[%emt 0:00:17]} Bc5 {[%emt 0:00:13]} 92. Ke4 {[%emt 0:00:38]} Ke6 {[%emt 0:01:09]} 93. Nc7+ {[%emt 0:00:04]} Kd7 {[%emt 0:00:22]} 94. Nd5 {[%emt 0:00:03]} Ke6 {[%emt 0:00:06]} 95. Nf4+ {[%emt 0:00:01]} Ke7 {[%emt 0:00:28]} 96. Kd5 {[%emt 0:00:02]} Kd7 {[%emt 0:00:38]} 97. Nd3 {[%emt 0:00:47]} Ba3 {[%emt 0:00:32]} 98. Kd4 {[%emt 0:03:38]} Ke6 {[%emt 0:00:44]} 99. Ke4 {[%emt 0:00:02]} Ke7 {[%emt 0:00:35]} 100. Kf4 {[%emt 0:05:03]} Ke6 {[%emt 0:00:17]} 101. Kg3 {[%emt 0:00:01]} Bb4 {[%emt 0:01:07]} 102. Nxb4 {[%emt 0:00:51]} axb4 {[%emt 0:00:03]} 103. Kf4 {[%emt 0:00:04]} d5 {[%emt 0:00:05]} 104. cxd5+ {[%emt 0:01:14]} Kxd5 {Ke4+} 1-0

[Event "EYCC Open-U18 2019"]
[Site "Bratislava"]
[Date "2019.08.10"]
[Round "9.36"]
[White "Jakab, Bela"]
[Black "Durica, Adam"]
[Result "1-0"]
[ECO "C41"]
[WhiteElo "2278"]
[BlackElo "1958"]
[Annotator "NA"]
[PlyCount "80"]
[EventDate "2019.08.02"]
[EventType "swiss"]
[EventCountry "SVK"]
[SourceTitle "playchess.com"]
[Source "ChessBase"]
[SourceQuality "1"]
[TimeControl "40/5400+30:1800+30"]

1. e4 {[%emt 0:00:00]} e5 {[%emt 0:00:00]} 2. Nf3 {[%emt 0:00:00]} d6 {[%emt 0:00:00]} 3. Bc4 {[%emt 0:00:00]} c6 {[%emt 0:00:15]} 4. O-O {[%emt 0:00:14]} Bg4 {[%emt 0:00:39]} 5. c3 {[%emt 0:03:08]} Nf6 {[%emt 0:01:01]} 6. Re1 {[%emt 0:01:54]} b5 {[%emt 0:01:59]} 7. Bf1 {[%emt 0:01:03]} Be7 {[%emt 0:00:50]} 8. d4 {[%emt 0:01:55]} Nbd7 {[%emt 0:00:09]} 9. Nbd2 {[%emt 0:06:38]} O-O {[%emt 0:00:41]} 10. h3 {[%emt 0:01:20]} Bxf3 {[%emt 0:04:38]} 11. Nxf3 {[%emt 0:02:24]} a5 {[%emt 0:00:40]} 12. a4 {[%emt 0:01:36]} b4 {[%emt 0:02:23]} 13. cxb4 {[%emt 0:01:02]} axb4 {[%emt 0:00:10]} 14. dxe5 {[%emt 0:00:32]} dxe5 {[%emt 0:00:42]} 15. Qc2 {[%emt 0:00:57]} Qc7 {[%emt 0:06:24]} 16. Be3 {[%emt 0:03:49]} c5 {[%emt 0:01:17]} 17. Nd2 {[%emt 0:01:07]} Rfc8 {[%emt 0:03:49]} 18. Nc4 {[%emt 0:04:33]} Nb6 {[%emt 0:03:11]} 19. Red1 {[%emt 0:02:33]} Ne8 {[%emt 0:07:37]} 20. Nxb6 {[%emt 0:06:20]} Qxb6 {[%emt 0:00:28]} 21. Rd5 {[%emt 0:00:17]} Qc7 {[%emt 0:09:07]} 22. Bc4 {[%emt 0:02:15]} Nd6 {[%emt 0:05:48]} 23. Rxc5 {[%emt 0:08:45]} Qxc5 {[%emt 0:01:42]} 24. Bxc5 {[%emt 0:00:06]} Rxc5 {[%emt 0:00:08]} 25. b3 {[%emt 0:00:07]} Nxc4 {[%emt 0:00:06]} 26. bxc4 {[%emt 0:00:04]} Rac8 {[%emt 0:00:44]} 27. a5 {[%emt 0:02:43]} Rxc4 {[%emt 0:00:06]} 28. Qa4 {[%emt 0:00:19]} Bc5 {[%emt 0:06:34]} 29. a6 {[%emt 0:01:57]} Ba7 {[%emt 0:04:16]} 30. Rd1 {[%emt 0:00:41]} h6 {[%emt 0:02:48]} 31. Kh2 {[%emt 0:05:33]} Bd4 {[%emt 0:05:23]} 32. Rd2 {[%emt 0:14:22]} Kh7 {[%emt 0:02:40]} 33. Ra2 {[%emt 0:08:43]} Ba7 {[%emt 0:04:01]} 34. Rb2 {[%emt 0:04:38]} R8c6 {[%emt 0:07:39]} 35. Rxb4 {[%emt 0:02:29]} Rxb4 {[%emt 0:00:07]} 36. Qxc6 {[%emt 0:00:37]} Bxf2 {[%emt 0:00:08]} 37. Qd7 {[%emt 0:01:57]} Be3 {[%emt 0:03:04]} 38. a7 {[%emt 0:01:21]} Bf4+ {[%emt 0:00:29]} 39. g3 {[%emt 0:00:00]} Rb2+ {[%emt 0:01:27]} 40. Kh1 {[%emt 0:00:00]} Rb1+ {[%emt 0:00:00]} 1-0

[Event "EYCC Open-U18 2019"]
[Site "Bratislava"]
[Date "2019.08.10"]
[Round "9.37"]
[White "Johannsson, Birkir Isak"]
[Black "Halfhide, Sebastian"]
[Result "1/2-1/2"]
[ECO "A05"]
[WhiteElo "1988"]
[BlackElo "2286"]
[Annotator "ChessBase"]
[PlyCount "109"]
[EventDate "2019.08.02"]
[EventType "swiss"]
[EventCountry "SVK"]
[SourceTitle "playchess.com"]
[Source "ChessBase"]
[SourceQuality "1"]
[TimeControl "40/5400+30:1800+30"]

1. Nf3 {[%emt 0:00:00]} Nf6 {[%emt 0:00:00]} 2. c4 {[%emt 0:00:00]} e6 {[%emt 0:00:00]} 3. Nc3 {[%emt 0:00:00]} d5 {[%emt 0:00:00]} 4. d4 {[%emt 0:00:02]} a6 {[%emt 0:00:32]} 5. cxd5 {[%emt 0:00:20]} exd5 {[%emt 0:00:06]} 6. Bg5 {[%emt 0:00:30]} Be6 {[%emt 0:01:04]} 7. e3 {[%emt 0:00:12]} Nbd7 {[%emt 0:00:44]} 8. Bd3 {[%emt 0:00:36]} Bd6 {[%emt 0:05:39]} 9. O-O {[%emt 0:00:28]} c6 {[%emt 0:01:02]} 10. Bf4 {[%emt 0:01:04]} Qc7 {[%emt 0:00:09]} 11. Qd2 {[%emt 0:06:58]} O-O {[%emt 0:04:19]} 12. h3 {[%emt 0:00:47]} Rfe8 {[%emt 0:02:18]} 13. b4 {[%emt 0:08:13]} Nb6 {[%emt 0:18:32]} 14. Ne2 {[%emt 0:10:24]} h6 {[%emt 0:10:01]} 15. Qc2 {[%emt 0:03:51]} Nc4 {[%emt 0:13:12]} 16. Nd2 {[%emt 0:02:08]} Nxd2 {[%emt 0:06:43]} 17. Qxd2 {[%emt 0:00:03]} Ne4 {[%emt 0:01:08]} 18. Qc2 {[%emt 0:03:47]} Bxf4 {[%emt 0:01:25]} 19. Nxf4 {[%emt 0:01:54]} Nd6 {[%emt 0:02:32]} 20. Rfc1 {[%emt 0:04:33]} Qd7 {[%emt 0:01:15]} 21. a4 {[%emt 0:05:33]} Rec8 {[%emt 0:06:03]} 22. Qc3 {[%emt 0:07:05]} Bf5 {[%emt 0:01:45]} 23. Be2 {[%emt 0:05:31]} g5 {[%emt 0:04:42]} 24. Nh5 {[%emt 0:02:44]} Qe6 {[%emt 0:03:34]} 25. Ng3 {[%emt 0:01:14]} Bg6 {[%emt 0:02:33]} 26. Qb3 {[%emt 0:04:07]} h5 {[%emt 0:03:52]} 27. Nxh5 {[%emt 0:05:33]} Bxh5 {[%emt 0:01:25]} 28. Bxh5 {[%emt 0:00:03]} f5 {[%emt 0:01:02]} 29. Qd1 {[%emt 0:01:05]} Kh8 {[%emt 0:01:33]} 30. Be2 {[%emt 0:00:51]} Rg8 {[%emt 0:01:24]} 31. g3 {[%emt 0:03:24]} g4 {[%emt 0:03:19]} 32. h4 {[%emt 0:01:00]} Rae8 {[%emt 0:00:23]} 33. Bf1 {[%emt 0:01:08]} Ne4 {[%emt 0:01:10]} 34. Qe1 {[%emt 0:06:33]} Qf6 {[%emt 0:01:10]} 35. Qd1 {[%emt 0:03:51]} Qd6 {[%emt 0:00:28]} 36. Bg2 {[%emt 0:01:43]} Qxb4 {[%emt 0:00:46]} 37. Rab1 {[%emt 0:00:01]} Qe7 {[%emt 0:00:11]} 38. Rb6 {[%emt 0:00:11]} Rd8 {[%emt 0:01:38]} 39. Bxe4 {[%emt 0:01:58]} fxe4 {[%emt 0:00:18]} 40. Rcb1 {[%emt 0:00:00]} Rd7 {[%emt 0:00:00]} 41. R1b3 {[%emt 0:03:22]} Rg7 {[%emt 0:03:05]} 42. Qb1 {[%emt 0:00:42]} Rf7 {[%emt 0:01:14]} 43. Qb2 {[%emt 0:00:14]} Kh7 {[%emt 0:02:09]} 44. Kg2 {[%emt 0:00:23]} Rc7 {[%emt 0:08:43]} 45. Kg1 {[%emt 0:00:54]} Kg8 {[%emt 0:01:38]} 46. Qe2 {[%emt 0:01:19]} Qd7 {[%emt 0:01:38]} 47. Qb2 {[%emt 0:00:41]} Kf8 {[%emt 0:00:15]} 48. R3b4 {[%emt 0:00:04]} Ke8 {[%emt 0:01:12]} 49. Rb3 {[%emt 0:00:03]} Kd8 {[%emt 0:02:04]} 50. a5 {[%emt 0:00:22]} Qe7 {[%emt 0:01:23]} 51. Qe2 {[%emt 0:00:15]} Rg7 {[%emt 0:01:19]} 52. Qb2 {[%emt 0:00:06]} Kc8 {[%emt 0:00:54]} 53. Kg2 {[%emt 0:00:06]} Rf7 {[%emt 0:00:50]} 54. Kg1 {[%emt 0:00:02]} Qf6 {[%emt 0:03:34]} 55. Qe2 {[%emt 0:01:19]} 1/2-1/2

[Event "EYCC Open-U18 2019"]
[Site "Bratislava"]
[Date "2019.08.10"]
[Round "9.38"]
[White "Gray, Euan"]
[Black "Castillo Dalmau, Albert"]
[Result "1/2-1/2"]
[ECO "E55"]
[WhiteElo "2004"]
[BlackElo "2252"]
[Annotator "NA"]
[PlyCount "89"]
[EventDate "2019.08.02"]
[EventType "swiss"]
[EventCountry "SVK"]
[SourceTitle "playchess.com"]
[Source "ChessBase"]
[SourceQuality "1"]
[TimeControl "40/5400+30:1800+30"]

1. d4 {[%emt 0:00:00]} Nf6 {[%emt 0:00:00]} 2. c4 {[%emt 0:00:00]} e6 {[%emt 0:00:00]} 3. Nc3 {[%emt 0:00:00]} Bb4 {[%emt 0:00:00]} 4. e3 {[%emt 0:00:00]} O-O {[%emt 0:00:04]} 5. Bd3 {[%emt 0:00:13]} d5 {[%emt 0:00:26]} 6. Nf3 {[%emt 0:00:26]} c5 {[%emt 0:00:06]} 7. O-O {[%emt 0:00:24]} dxc4 {[%emt 0:00:09]} 8. Bxc4 {[%emt 0:00:39]} Nbd7 {[%emt 0:00:06]} 9. Qe2 {[%emt 0:06:08]} b6 {[%emt 0:00:43]} 10. Rd1 {[%emt 0:06:16]} cxd4 {[%emt 0:00:39]} 11. exd4 {[%emt 0:00:23]} Bxc3 {[%emt 0:00:35]} 12. bxc3 {[%emt 0:00:05]} Qc7 {[%emt 0:00:04]} 13. Bd2 {[%emt 0:14:58]} Bb7 {[%emt 0:00:19]} 14. Rac1 {[%emt 0:03:04]} Bxf3 {[%emt 0:19:21]} 15. gxf3 {[%emt 0:00:18]} Nd5 {[%emt 0:00:08]} 16. Bd3 {[%emt 0:03:55]} Nf4 {[%emt 0:01:58]} 17. Bxf4 {[%emt 0:00:13]} Qxf4 {[%emt 0:00:05]} 18. Qe4 {[%emt 0:02:04]} Qh6 {[%emt 0:00:17]} 19. Qe3 {[%emt 0:00:33]} Qh4 {[%emt 0:01:21]} 20. f4 {[%emt 0:09:53]} Nf6 {[%emt 0:00:23]} 21. Qg3 {[%emt 0:00:19]} Qh6 {[%emt 0:00:45]} 22. Qg5 {[%emt 0:01:41]} Qxg5+ {[%emt 0:03:45]} 23. fxg5 {[%emt 0:03:28]} Nd5 {[%emt 0:00:30]} 24. Be4 {[%emt 0:06:55]} Rac8 {[%emt 0:01:51]} 25. Bxd5 {[%emt 0:04:19]} exd5 {[%emt 0:00:01]} 26. Re1 {[%emt 0:00:15]} Rc7 {[%emt 0:00:13]} 27. Re5 {[%emt 0:00:49]} Rd8 {[%emt 0:00:02]} 28. Kf1 {[%emt 0:00:40]} f6 {[%emt 0:00:44]} 29. gxf6 {[%emt 0:01:57]} gxf6 {[%emt 0:00:02]} 30. Re3 {[%emt 0:03:36]} Kf7 {[%emt 0:00:35]} 31. Ke2 {[%emt 0:01:59]} Rg8 {[%emt 0:02:00]} 32. Rg3 {[%emt 0:02:41]} Re8+ {[%emt 0:01:11]} 33. Kd3 {[%emt 0:00:30]} Re4 {[%emt 0:03:26]} 34. Rcg1 {[%emt 0:05:19]} Ke6 {[%emt 0:00:12]} 35. Rg7 {[%emt 0:01:28]} Rxg7 {[%emt 0:00:05]} 36. Rxg7 {[%emt 0:00:02]} Rh4 {[%emt 0:00:06]} 37. Rxa7 {[%emt 0:01:22]} Rxh2 {[%emt 0:00:05]} 38. Ke3 {[%emt 0:04:01]} Rh3+ {[%emt 0:05:50]} 39. f3 {[%emt 0:00:08]} Rh2 {[%emt 0:00:12]} 40. Rb7 {[%emt 0:00:00]} Rb2 {[%emt 0:00:00]} 41. Rxh7 {[%emt 0:03:53]} Rxa2 {[%emt 0:21:01]} 42. Rc7 {[%emt 0:00:28]} Ra3 {[%emt 0:11:47]} 43. Kd3 {[%emt 0:08:42]} Kd6 {[%emt 0:04:37]} 44. Rf7 {[%emt 0:00:06]} Ke6 {[%emt 0:00:06]} 45. Rc7 {[%emt 0:00:03] Ke5 Ke4+} 1/2-1/2